fUSD/lending_fUSD_20260321
["ID","MTS","AMOUNT","RATE_DAILY","PERIOD"]
[408683345,1774115143287,-622.62495934,0.00012936,2]
[408683346,1774115143386,-622.62495934,0.00012936,2]
[408683347,1774115143422,-622.62495934,0.00012936,2]
[408683348,1774115143458,-622.62495934,0.00012936,2]
[408683349,1774115143492,-622.62495934,0.00012936,2]
[408683350,1774115143526,-622.62495934,0.00012936,2]
[408683351,1774115143560,-622.62495934,0.00012936,2]
[408683352,1774115143598,-622.62495934,0.00012936,2]
[408683353,1774115143633,-622.62495934,0.00012936,2]
[408683354,1774115143675,-622.62495934,0.00012936,2]
[408683355,1774115143710,-622.62495934,0.00012936,2]
[408683356,1774115143746,-622.62495934,0.00012936,2]
[408683357,1774115143782,-622.62495934,0.00012936,2]
[408683358,1774115143817,-622.62495934,0.00012936,2]
[408683359,1774115143854,-622.62495934,0.00012936,2]
[408683360,1774115143891,-622.62495934,0.00012936,2]
[408683361,1774115143928,-622.62495934,0.00012936,2]
[408683362,1774115143973,-622.62495934,0.00012936,2]
[408683363,1774115144008,-622.62495934,0.00012936,2]
[408683364,1774115144043,-622.62495934,0.00012936,2]
[408683365,1774115144078,-622.62495934,0.00012936,2]
[408683366,1774115144118,-622.62495934,0.00012936,2]
[408683367,1774115144161,-622.62495934,0.00012936,2]
[408683368,1774115144197,-622.62495934,0.00012936,2]
[408683369,1774115144233,-622.62495934,0.00012936,2]
[408683370,1774115144280,-622.62495934,0.00012936,2]
[408683371,1774115144316,-622.62495934,0.00012936,2]
[408683372,1774115144360,-622.62495934,0.00012936,2]
[408683373,1774115144400,-622.62495934,0.00012936,2]
[408683374,1774115144444,-622.62495934,0.00012936,2]
[408683375,1774115144480,-622.62495934,0.00012936,2]
[408683376,1774115144517,-622.62495934,0.00012936,2]
[408683377,1774115144554,-622.62495934,0.00012936,2]
[408683378,1774115144724,-622.62495934,0.00012936,2]
[408683379,1774115144758,-622.62495934,0.00012936,2]
[408683380,1774115144794,-622.62495934,0.00012936,2]
[408683381,1774115144833,-622.62495934,0.00012936,2]
[408683382,1774115144877,-622.62495934,0.00012936,2]
[408683383,1774115144921,-622.62495934,0.00012936,2]
[408683384,1774115144962,-622.62495934,0.00012936,2]
[408683385,1774115145003,-622.62495934,0.00012936,2]
[408683386,1774115145410,-622.62495934,0.00012936,2]
[408683387,1774115145451,-622.62495934,0.00012936,2]
[408683388,1774115145493,-622.62495934,0.00012936,2]
[408683389,1774115145532,-622.62495934,0.00012936,2]
[408683390,1774115145573,-622.62495934,0.00012936,2]
[408683391,1774115145617,-622.62495934,0.00012936,2]
[408683392,1774115145659,-622.62495934,0.00012936,2]
[408683393,1774115145700,-616.39870975,0.00012936,2]
[408683394,1774115147317,-616.39870975,0.00012936,2]
[408683395,1774115147358,-616.39870975,0.00012936,2]
[408683396,1774115147398,-616.39870975,0.00012936,2]
[408683397,1774115147435,-616.39870975,0.00012936,2]
[408683398,1774115147473,-616.39870975,0.00012936,2]
[408683399,1774115147511,-616.39870975,0.00012936,2]
[408683400,1774115147548,-616.39870975,0.00012936,2]
[408683401,1774115147587,-616.39870975,0.00012936,2]
[408683402,1774115147792,-616.39870975,0.00012936,2]
[408683403,1774115147832,-616.39870975,0.00012936,2]
[408683404,1774115147869,-616.39870975,0.00012936,2]
[408683405,1774115147914,-616.39870975,0.00012936,2]
[408683406,1774115147957,-616.39870975,0.00012936,2]
[408683407,1774115148000,-616.39870975,0.00012936,2]
[408683408,1774115148044,-616.39870975,0.00012936,2]
[408683409,1774115148083,-616.39870975,0.00012936,2]
[408683410,1774115148224,-616.39870975,0.00012936,2]
[408683411,1774115148269,-616.39870975,0.00012936,2]
[408683412,1774115148311,-616.39870975,0.00012936,2]
[408683413,1774115148350,-616.39870975,0.00012936,2]
[408683414,1774115148392,-616.39870975,0.00012936,2]
[408683415,1774115148434,-616.39870975,0.00012936,2]
[408683416,1774115148476,-616.39870975,0.00012936,2]
[408683417,1774115148516,-616.39870975,0.00012936,2]
[408683418,1774115148567,-616.39870975,0.00012936,2]
[408683419,1774115148609,-616.39870975,0.00012936,2]
[408683420,1774115148650,-616.39870975,0.00012936,2]
[408683421,1774115148692,-616.39870975,0.00012936,2]
[408683422,1774115148733,-616.39870967,0.00012936,2]
[408683423,1774115148765,-500.0,0.00012936,2]
[408683424,1774115148800,-250.0,0.00012936,2]
[408683425,1774115148834,-375.0015104,0.00012936,2]
[408683426,1774115148867,-657.01988186,0.00012936,2]
[408683427,1774115150831,-271.98011814,0.00012936,2]
[408683428,1774115158139,-4571.78149615,0.00012937,2]
[408683429,1774115158168,-10000.01,0.00012937,2]
[408683430,1774115158283,-10000.01,0.00012937,2]
[408683431,1774115158375,-10000.01,0.00012937,2]
[408683432,1774115158518,-10000.01,0.00012937,2]
[408683433,1774115158656,-10000.01,0.00012937,2]
[408683434,1774115160048,-10000.01,0.00012937,2]
[408683435,1774115160237,-10000.01,0.00012937,2]
[408683436,1774115160341,-10000.01,0.00012937,2]
[408683437,1774115160438,-10000.01,0.00012937,2]
[408683438,1774115166011,-3945.19153566,0.00012858,2]
[408683439,1774115166055,-2109.62692868,0.00012937,2]
[408683440,1774115166128,-10000.01,0.00012937,2]
[408683441,1774115166249,-10000.01,0.00012937,2]
[408683442,1774115166384,-10000.01,0.00012937,2]
[408683443,1774115166478,-10000.01,0.00012937,2]
[408683444,1774115166609,-10000.01,0.00012937,2]
[408683445,1774115168431,22533.612797,7.945e-05,2]
[408683446,1774115187275,6762.8291,0.00012837,2]
[408683447,1774115188326,3772.44523584,0.00012837,2]
[408683448,1774115197415,2191.92962496,0.00012837,2]
[408683449,1774115206148,-430.18489143,0.00012937,2]
[408683450,1774115241083,-533.60129025,0.00012936,2]
[408683451,1774115241105,-151.0,0.00012936,2]
[408683452,1774115241136,-151.0,0.00012936,2]
[408683453,1774115241158,-77.03956705,0.00012936,2]
[408683454,1774115248211,1631.7259626,0.00012837,2]
[408683455,1774115252132,-122.96043295,0.00012936,2]
[408683456,1774115252155,-1456.69749178,0.00012937,2]
[408683457,1774115252184,-655.33534146,0.00012937,2]
[408683458,1774115258457,6176.35441244,0.00012837,2]
[408683459,1774115258478,10000.01,0.00012837,2]
[408683460,1774115258500,993.58264545,0.00012837,2]
[408683461,1774115268388,5000.01,0.00012837,2]
[408683462,1774115268410,9006.42735455,0.00012837,2]
[408683463,1774115268431,5849.33674545,0.00012837,2]
[408683464,1774115274540,2500.0,0.00012837,2]
[408683465,1774115279388,150.0,0.00012846,2]
[408683466,1774115280671,300.0,0.000127,4]
[408683467,1774115282761,700.0,0.000128,4]
[408683468,1774115284846,1000.0,0.000129,4]
[408683469,1774115390994,1180.23,0.00011507,2]
[408683470,1774115402338,6669.78,0.00012836,2]
[408683471,1774115402364,10000.01,0.00012836,2]
[408683472,1774115402389,636205.1781,0.00012836,2]
[408683474,1774115432241,-4527.4822,0.00012904,2]
[408683475,1774115432252,-256.0,0.00012927,2]
[408683476,1774115432262,-421.40930356,0.00012927,2]
[408683477,1774115432272,-1200.0,0.00012934,2]
[408683478,1774115432281,-300.0,0.00012934,2]
[408683479,1774115432296,-300.0,0.00012934,2]
[408683480,1774115432307,-3294.6536531,0.00012935,2]
[408683481,1774115432317,-395.0,0.00012935,2]
[408683482,1774115432326,-5000.0,0.00012935,2]
[408683483,1774115432336,-500.0,0.00012936,2]
[408683484,1774115432347,-500.0,0.00012936,2]
[408683486,1774115432357,-500.0,0.00012936,2]
[408683488,1774115432366,-500.0,0.00012936,2]
[408683490,1774115432376,-500.0,0.00012936,2]
[408683491,1774115432385,-500.0,0.00012936,2]
[408683492,1774115432394,-500.0,0.00012936,2]
[408683493,1774115432403,-500.0,0.00012936,2]
[408683494,1774115432413,-500.0,0.00012936,2]
[408683495,1774115432422,-500.0,0.00012936,2]
[408683497,1774115432432,-500.0,0.00012936,2]
[408683499,1774115432441,-500.0,0.00012936,2]
[408683501,1774115432450,-500.0,0.00012936,2]
[408683503,1774115432459,-500.0,0.00012936,2]
[408683505,1774115432468,-500.0,0.00012936,2]
[408683507,1774115432477,-500.0,0.00012936,2]
[408683509,1774115432491,-500.0,0.00012936,2]
[408683511,1774115432500,-500.0,0.00012936,2]
[408683513,1774115432510,-500.0,0.00012936,2]
[408683515,1774115432519,-500.0,0.00012936,2]
[408683517,1774115432528,-500.0,0.00012936,2]
[408683519,1774115432538,-500.0,0.00012936,2]
[408683521,1774115432547,-500.0,0.00012936,2]
[408683522,1774115432556,-500.0,0.00012936,2]
[408683523,1774115432565,-500.0,0.00012936,2]
[408683524,1774115432574,-500.0,0.00012936,2]
[408683525,1774115432583,-500.0,0.00012936,2]
[408683526,1774115432593,-500.0,0.00012936,2]
[408683527,1774115432602,-500.0,0.00012936,2]
[408683528,1774115432612,-500.0,0.00012936,2]
[408683529,1774115432622,-500.0,0.00012936,2]
[408683530,1774115432631,-500.0,0.00012936,2]
[408683531,1774115432643,-400.04039485,0.00012936,2]
[408683532,1774115432653,-500.0,0.00012936,2]
[408683533,1774115432662,-500.0,0.00012936,2]
[408683534,1774115432672,-500.0,0.00012936,2]
[408683535,1774115432682,-500.0,0.00012936,2]
[408683536,1774115432694,-500.0,0.00012936,2]
[408683537,1774115432704,-500.0,0.00012936,2]
[408683538,1774115432715,-500.0,0.00012936,2]
[408683539,1774115432724,-500.0,0.00012936,2]
[408683540,1774115432733,-500.0,0.00012936,2]
[408683541,1774115432743,-500.0,0.00012936,2]
[408683542,1774115432752,-500.0,0.00012936,2]
[408683543,1774115432761,-500.0,0.00012936,2]
[408683544,1774115432771,-500.0,0.00012936,2]
[408683545,1774115432780,-500.0,0.00012936,2]
[408683546,1774115432789,-500.0,0.00012936,2]
[408683547,1774115432799,-500.0,0.00012936,2]
[408683548,1774115432808,-500.0,0.00012936,2]
[408683549,1774115432817,-500.0,0.00012936,2]
[408683550,1774115432826,-500.0,0.00012936,2]
[408683551,1774115432835,-500.0,0.00012936,2]
[408683552,1774115432845,-500.0,0.00012936,2]
[408683553,1774115432854,-500.0,0.00012936,2]
[408683554,1774115432863,-500.0,0.00012936,2]
[408683555,1774115432873,-500.0,0.00012936,2]
[408683556,1774115432882,-500.0,0.00012936,2]
[408683557,1774115432890,-500.0,0.00012936,2]
[408683558,1774115432900,-500.0,0.00012936,2]
[408683559,1774115432909,-500.0,0.00012936,2]
[408683560,1774115432919,-500.0,0.00012936,2]
[408683561,1774115432928,-500.0,0.00012936,2]
[408683562,1774115432937,-500.0,0.00012936,2]
[408683563,1774115432946,-500.0,0.00012936,2]
[408683564,1774115432955,-500.0,0.00012936,2]
[408683565,1774115432964,-500.0,0.00012936,2]
[408683566,1774115432973,-500.0,0.00012936,2]
[408683567,1774115432982,-500.0,0.00012936,2]
[408683568,1774115432991,-500.0,0.00012936,2]
[408683569,1774115433001,-500.0,0.00012936,2]
[408683570,1774115433011,-500.0,0.00012936,2]
[408683571,1774115433020,-500.0,0.00012936,2]
[408683572,1774115433029,-500.0,0.00012936,2]
[408683573,1774115433038,-250.0,0.00012936,2]
[408683574,1774115433047,-500.0,0.00012936,2]
[408683575,1774115433057,-500.0,0.00012936,2]
[408683576,1774115433065,-500.0,0.00012936,2]
[408683577,1774115433083,-500.0,0.00012936,2]
[408683578,1774115433093,-500.0,0.00012936,2]
[408683579,1774115433103,-500.0,0.00012936,2]
[408683580,1774115433112,-500.0,0.00012936,2]
[408683581,1774115433121,-179.42795835,0.00012936,2]
[408683582,1774115433131,-300.0,0.00012936,2]
[408683583,1774115433142,-150.0,0.00012936,2]
[408683584,1774115433154,-300.0,0.00012936,2]
[408683585,1774115433163,-200.0,0.00012937,2]
[408683586,1774115433173,-287.74314858,0.00012937,2]
[408683587,1774115433182,-166.66,0.00012958,2]
[408683588,1774115433191,-153449.5196,0.00013034,2]
[408683589,1774115433200,-1000.0,0.00013036,2]
[408683590,1774115433210,-3772.44523579,0.00013177,2]
[408683591,1774115433219,-3945.19153564,0.00013196,2]
[408683592,1774115433229,-929.0,0.0001321,2]
[408683593,1774115433239,-1631.72596259,0.00013275,2]
[408683594,1774115433250,-57559.52,0.00013293,2]
[408683595,1774115433259,-9999.99,0.00013293,2]
[408683596,1774115433270,-150.99,0.00013293,2]
[408683597,1774115433280,-9999.99,0.00013293,2]
[408683598,1774115433289,-299.99,0.00013293,2]
[408683599,1774115433299,-150.99,0.00013293,2]
[408683600,1774115433309,-430.89,0.00013293,2]
[408683601,1774115433318,-999.99,0.00013293,2]
[408683602,1774115433328,-9999.99,0.00013293,2]
[408683603,1774115433338,-9999.99,0.00013293,2]
[408683604,1774115433348,-11921.1,0.00013346,2]
[408683605,1774115433357,-182.14375909,0.00013365,2]
[408683606,1774115433367,-19999.99,0.00013365,2]
[408683607,1774115433376,-1222.07,0.00013365,2]
[408683608,1774115433386,-166.66,0.00013385,2]
[408683609,1774115433396,-200.0,0.0001339,2]
[408683610,1774115433405,-18463.76,0.00013391,2]
[408683611,1774115433416,-500.0,0.00013409,3]
[408683612,1774115433426,-10000.01,0.00013427,2]
[408683613,1774115433435,-673.99653065,0.00013435,2]
[408683614,1774115433445,-3582.97980095,0.00013435,2]
[408683615,1774115433458,-1643.65762075,0.00013435,2]
[408683616,1774115433468,-2314.97764856,0.00013435,2]
[408683617,1774115433477,-2613.31871085,0.00013435,2]
[408683618,1774115433486,-2966.03576798,0.00013435,2]
[408683619,1774115433727,-237.72651805,0.00013435,2]
[408683620,1774115433736,-380.72369071,0.00013435,2]
[408683621,1774115433745,-222.06221623,0.00013436,2]
[408683622,1774115433753,-339.70994658,0.00013436,2]
[408683623,1774115433768,-426.0,0.00013438,2]
[408683624,1774115433776,-233.0,0.00013441,2]
[408683625,1774115433786,-513.0,0.00013457,2]
[408683626,1774115433794,-208.25,0.00013471,2]
[408683627,1774115433803,-200.0,0.00013484,2]
[408683628,1774115433812,-929.0,0.00013484,2]
[408683629,1774115433821,-1064.0,0.00013484,2]
[408683630,1774115433829,-3772.44523579,0.00013518,2]
[408683631,1774115433838,-3945.19153564,0.00013534,2]
[408683632,1774115433847,-500.0,0.00013624,2]
[408683633,1774115433855,-500.0,0.00013624,2]
[408683634,1774115433864,-15654.04983256,0.00013627,2]
[408683635,1774115433872,-500.0,0.00013698,2]
[408683636,1774115433881,-500.0,0.00013698,2]
[408683637,1774115433888,-500.0,0.00013698,2]
[408683638,1774115433895,-500.0,0.00013698,2]
[408683639,1774115433901,-500.0,0.00013698,2]
[408683640,1774115433908,-500.0,0.00013698,2]
[408683641,1774115433917,-569.64418973,0.00013698,2]
[408683642,1774115433926,-500.0,0.00013698,2]
[408683643,1774115433936,-500.0,0.00013698,2]
[408683644,1774115433945,-500.0,0.00013698,2]
[408683645,1774115433955,-500.0,0.00013698,2]
[408683646,1774115433964,-500.0,0.00013698,2]
[408683647,1774115433974,-500.0,0.00013698,2]
[408683648,1774115433983,-500.0,0.00013698,2]
[408683649,1774115433992,-500.0,0.00013698,2]
[408683650,1774115434002,-500.0,0.00013698,2]
[408683651,1774115434011,-500.0,0.00013698,2]
[408683652,1774115434020,-500.0,0.00013698,2]
[408683653,1774115434029,-500.0,0.00013698,2]
[408683654,1774115434039,-500.0,0.00013698,2]
[408683655,1774115434049,-500.0,0.00013698,2]
[408683656,1774115434058,-338.47316987,0.00013698,2]
[408683657,1774115434068,-500.0,0.00013698,2]
[408683658,1774115434078,-500.0,0.00013698,2]
[408683659,1774115434087,-500.0,0.00013698,2]
[408683660,1774115434096,-441.16865267,0.00013698,2]
[408683661,1774115434106,-500.0,0.00013698,2]
[408683662,1774115434115,-500.0,0.00013698,2]
[408683663,1774115434124,-500.0,0.00013698,2]
[408683664,1774115434133,-500.0,0.00013698,2]
[408683665,1774115434142,-500.0,0.00013698,2]
[408683666,1774115434152,-282.40708321,0.00013698,2]
[408683667,1774115434161,-697.03,0.000137,2]
[408683668,1774115434170,-1259.9,0.000137,2]
[408683669,1774115434179,-317.79,0.000137,2]
[408683670,1774115434189,-1260.83,0.000137,2]
[408683671,1774115434198,-162.21,0.000137,2]
[408683672,1774115434206,-1631.72596259,0.00013712,2]
[408683673,1774115434215,-929.0,0.00013758,2]
[408683674,1774115434225,-3304.22,0.00013778,2]
[408683675,1774115434234,-166.66,0.00013813,2]
[408683676,1774115434243,-3772.44523579,0.00013858,2]
[408683677,1774115434252,-182.14375909,0.00013872,2]
[408683678,1774115434261,-3945.19153564,0.00013872,2]
[408683679,1774115434271,-14997.5,0.00013966,2]
[408683680,1774115434281,-507.0,0.00014,2]
[408683681,1774115434290,-200.0,0.00014032,2]
[408683682,1774115434298,-929.0,0.00014032,2]
[408683683,1774115434308,-255.0,0.00014036,2]
[408683684,1774115434317,-410.47,0.00014073,2]
[408683685,1774115434326,-250.0,0.00014144,2]
[408683686,1774115434335,-193.0,0.00014144,2]
[408683687,1774115434345,-1631.72596259,0.0001415,2]
[408683688,1774115434355,-1000.0,0.00014171,2]
[408683689,1774115434364,-1000.0,0.00014171,2]
[408683690,1774115434373,-420.0,0.00014186,2]
[408683691,1774115434382,-420.0,0.00014187,2]
[408683692,1774115434391,-250.0,0.00014195,2]
[408683693,1774115434402,-3772.44523579,0.00014198,2]
[408683694,1774115434412,-3945.19153564,0.0001421,2]
[408683695,1774115434421,-600.0,0.0001422,2]
[408683696,1774115434431,-600.0,0.0001422,2]
[408683697,1774115434441,-600.0,0.0001422,2]
[408683698,1774115434452,-194.24944797,0.0001422,2]
[408683699,1774115434463,-300.0,0.0001422,2]
[408683700,1774115434473,-300.0,0.0001422,2]
[408683701,1774115434482,-300.0,0.0001422,2]
[408683702,1774115434491,-250.0,0.00014227,2]
[408683703,1774115434501,-1680.0,0.00014228,2]
[408683704,1774115434510,-5000.0,0.00014229,2]
[408683705,1774115434520,-5000.0,0.00014229,2]
[408683706,1774115434530,-2500.0,0.00014231,2]
[408683707,1774115434540,-390.46916564,0.00014231,2]
[408683708,1774115434549,-166.66,0.00014241,2]
[408683709,1774115434559,-929.0,0.00014306,2]
[408683710,1774115434569,-182.14375909,0.00014379,2]
[408683711,1774115434578,-193.88,0.00014469,2]
[408683712,1774115434588,-5287.31936849,0.00014509,2]
[408683713,1774115434598,-500.0,0.00014509,2]
[408683714,1774115434607,-250.0,0.00014509,2]
[408683715,1774115434616,-500.0,0.00014509,2]
[408683716,1774115434625,-280.93336224,0.00014509,2]
[408683717,1774115434635,-500.0,0.00014509,2]
[408683718,1774115434647,-500.0,0.00014509,2]
[408683719,1774115434656,-500.0,0.00014509,2]
[408683720,1774115434666,-500.0,0.00014509,2]
[408683721,1774115434675,-500.0,0.00014509,2]
[408683722,1774115434686,-500.0,0.00014509,2]
[408683723,1774115434695,-500.0,0.00014509,2]
[408683724,1774115434704,-250.0,0.00014509,2]
[408683725,1774115434713,-500.0,0.00014509,2]
[408683726,1774115434722,-500.0,0.00014509,2]
[408683727,1774115434731,-250.0,0.00014509,2]
[408683728,1774115434740,-250.0,0.00014509,2]
[408683729,1774115434749,-500.0,0.00014509,2]
[408683730,1774115434758,-500.0,0.00014509,2]
[408683731,1774115434767,-250.0,0.00014509,2]
[408683732,1774115434776,-500.0,0.00014509,2]
[408683733,1774115434785,-250.0,0.00014509,2]
[408683734,1774115434794,-500.0,0.00014509,2]
[408683735,1774115434804,-250.0,0.00014509,2]
[408683736,1774115434813,-500.0,0.00014509,2]
[408683737,1774115434822,-250.0,0.00014509,2]
[408683738,1774115434831,-500.0,0.00014509,2]
[408683739,1774115434840,-250.0,0.00014509,2]
[408683740,1774115434849,-268.3661478,0.00014509,2]
[408683741,1774115434859,-500.0,0.00014509,2]
[408683742,1774115434868,-500.0,0.00014509,2]
[408683743,1774115434877,-250.0,0.00014509,2]
[408683744,1774115434886,-516.47340423,0.00014509,2]
[408683745,1774115434896,-500.0,0.00014509,2]
[408683746,1774115434916,-250.0,0.00014509,2]
[408683747,1774115434931,-500.0,0.00014509,2]
[408683748,1774115434941,-250.0,0.00014509,2]
[408683749,1774115434950,-250.0,0.00014509,2]
[408683750,1774115434959,-500.0,0.00014509,2]
[408683751,1774115434968,-250.0,0.00014509,2]
[408683752,1774115434978,-250.0,0.00014509,2]
[408683753,1774115434987,-250.0,0.00014509,2]
[408683754,1774115434997,-260.83847575,0.00014509,2]
[408683755,1774115435006,-250.0,0.00014509,2]
[408683756,1774115435015,-250.0,0.00014509,2]
[408683757,1774115435024,-250.0,0.00014509,2]
[408683758,1774115435033,-250.0,0.00014509,2]
[408683759,1774115435043,-335.32119913,0.00014509,2]
[408683760,1774115435052,-151.0,0.00014509,2]
[408683761,1774115435061,-3772.44523579,0.00014539,2]
[408683762,1774115435070,-3945.19153564,0.00014548,2]
[408683763,1774115435079,-200.0,0.0001458,2]
[408683764,1774115435088,-929.0,0.0001458,2]
[408683765,1774115435098,-1631.72596259,0.00014587,2]
[408683766,1774115435107,-166.66,0.00014668,2]
[408683767,1774115435116,-1002.62691089,0.00014719,2]
[408683768,1774115435125,-1500.0,0.00014719,2]
[408683769,1774115435134,-161.0,0.00014818,2]
[408683770,1774115435144,-929.0,0.00014854,2]
[408683771,1774115435153,-3772.44523579,0.00014879,2]
[408683772,1774115435163,-182.14375909,0.00014886,2]
[408683773,1774115435172,-3945.19153564,0.00014886,2]
[408683774,1774115435181,-1400.0,0.000149,5]
[408683775,1774115435191,-735.1365972,0.00014932,2]
[408683776,1774115435200,-1631.72596259,0.00015025,2]
[408683777,1774115435210,-900.0,0.00015068,2]
[408683778,1774115435219,-166.66,0.00015096,2]
[408683779,1774115435228,-929.0,0.00015128,2]
[408683780,1774115435238,-2889.52,0.00015128,2]
[408683781,1774115435248,-160.0,0.0001514,7]
[408683782,1774115435257,-182.951185,0.0001514,7]
[408683783,1774115435269,-215.0,0.00015151,2]
[408683784,1774115435280,-5862.98401019,0.000152,2]
[408683785,1774115435290,-3772.44523579,0.00015219,2]
[408683786,1774115435300,-3945.19153564,0.00015224,2]
[408683787,1774115435311,-433.0,0.00015226,2]
[408683788,1774115435321,-154.42032795,0.00015265,2]
[408683789,1774115435330,-974.43830873,0.00015267,2]
[408683790,1774115435340,-10000.0,0.00015349,2]
[408683791,1774115435350,-160.0,0.00015349,2]
[408683792,1774115435361,-979.16666667,0.00015351,2]
[408683793,1774115435371,-160.0,0.00015351,2]
[408683794,1774115435381,-164.0311466,0.00015377,2]
[408683795,1774115435391,-182.14375909,0.00015393,2]
[408683796,1774115435401,-929.0,0.00015402,2]
[408683797,1774115435410,-500.0,0.00015446,2]
[408683798,1774115435419,-500.0,0.00015446,2]
[408683799,1774115435428,-500.0,0.00015446,2]
[408683800,1774115435438,-500.0,0.00015446,2]
[408683801,1774115435447,-500.0,0.00015446,2]
[408683802,1774115435457,-500.0,0.00015446,2]
[408683803,1774115435467,-500.0,0.00015446,2]
[408683804,1774115435477,-500.0,0.00015446,2]
[408683805,1774115435486,-500.0,0.00015446,2]
[408683806,1774115435496,-500.0,0.00015446,2]
[408683807,1774115435505,-500.0,0.00015446,2]
[408683808,1774115435515,-500.0,0.00015446,2]
[408683809,1774115435525,-286.7772583,0.00015446,2]
[408683810,1774115435534,-150.0,0.00015446,2]
[408683811,1774115435545,-159.74456164,0.00015446,2]
[408683812,1774115435555,-500.0,0.00015446,2]
[408683813,1774115435564,-500.0,0.00015446,2]
[408683814,1774115435574,-500.0,0.00015446,2]
[408683815,1774115435583,-500.0,0.00015446,2]
[408683816,1774115435594,-500.0,0.00015446,2]
[408683817,1774115435604,-195.65210854,0.00015446,2]
[408683818,1774115435614,-500.0,0.00015446,2]
[408683819,1774115435623,-500.0,0.00015446,2]
[408683820,1774115435635,-500.0,0.00015446,2]
[408683821,1774115435649,-500.0,0.00015446,2]
[408683822,1774115435661,-426.76631786,0.00015446,2]
[408683823,1774115435671,-150.0,0.00015446,2]
[408683824,1774115435680,-150.0,0.00015446,2]
[408683825,1774115435691,-155.82159694,0.00015446,2]
[408683826,1774115435701,-150.0,0.00015446,2]
[408683827,1774115435711,-151.46727953,0.00015446,2]
[408683828,1774115435723,-150.0,0.00015446,2]
[408683829,1774115435732,-150.0,0.00015446,2]
[408683830,1774115435743,-151.24861645,0.00015446,2]
[408683831,1774115435752,-234.87068709,0.00015446,2]
[408683832,1774115435762,-500.0,0.00015446,2]
[408683833,1774115435772,-500.0,0.00015446,2]
[408683834,1774115435782,-500.0,0.00015446,2]
[408683835,1774115435791,-500.0,0.00015446,2]
[408683836,1774115435800,-500.0,0.00015446,2]
[408683837,1774115435810,-512.84434544,0.00015446,2]
[408683838,1774115435820,-500.0,0.00015446,2]
[408683839,1774115435829,-500.0,0.00015446,2]
[408683840,1774115435838,-500.0,0.00015446,2]
[408683841,1774115435848,-500.0,0.00015446,2]
[408683842,1774115435857,-500.0,0.00015446,2]
[408683843,1774115435867,-500.0,0.00015446,2]
[408683844,1774115435876,-500.0,0.00015446,2]
[408683845,1774115435885,-500.0,0.00015446,2]
[408683846,1774115435896,-475.40838882,0.00015446,2]
[408683847,1774115435905,-500.0,0.00015446,2]
[408683848,1774115435915,-500.0,0.00015446,2]
[408683849,1774115435925,-500.0,0.00015446,2]
[408683850,1774115435934,-189.85256581,0.00015446,2]
[408683851,1774115435944,-500.0,0.00015446,2]
[408683852,1774115435955,-500.0,0.00015446,2]
[408683853,1774115435965,-500.0,0.00015446,2]
[408683854,1774115435975,-500.0,0.00015446,2]
[408683855,1774115435984,-500.0,0.00015446,2]
[408683856,1774115435994,-500.0,0.00015446,2]
[408683857,1774115436003,-500.0,0.00015446,2]
[408683858,1774115436013,-500.0,0.00015446,2]
[408683859,1774115436022,-500.0,0.00015446,2]
[408683860,1774115436032,-500.0,0.00015446,2]
[408683861,1774115436042,-500.0,0.00015446,2]